Body Name,Date,Transaction Number,Invoice Number,Net Amount,VAT,Supplier Name,Supplier ID,Expense Area,Expense Type,Expense Code
Redditch Borough Council,03/04/2020,334827,1711,540.00 ,0.00 ,3 Lions Removals,6519,Bed And Breakfast Accom.,Other Fees,4360
Redditch Borough Council,22/04/2020,337813,1727,540.00 ,0.00 ,3 Lions Removals,6519,Bed And Breakfast Accom.,Other Fees,4360
Redditch Borough Council,29/04/2020,337815,1723,1320.00 ,0.00 ,3 Lions Removals,6519,Housing Locality Service,Other Fees,4360
Redditch Borough Council,29/04/2020,337985,CA-010583,6681.00 ,0.00 ,Abbey & Lyndon Building Ltd,798,Rbc Balance Sheet,Disabled Facilities Grant,8701
Redditch Borough Council,29/04/2020,336593,SCRN00070214,-606.06 ,-121.21 ,Acs Ltd,106355,Hsg Options,Furniture & Equipment Purchase,4000
Redditch Borough Council,29/04/2020,338016,SINV00614223,5104.97 ,1020.99 ,Acs Ltd,106355,Covid-19,Ict,4500
Redditch Borough Council,15/04/2020,335551,ARCMIN/99077307,2507.24 ,501.45 ,Advanced Business Solutions,114,Rbc It Costs,Ict,4500
Redditch Borough Council,15/04/2020,337444,ARCMIN/99078208,14242.06 ,2848.41 ,Advanced Business Solutions,114,Rbc It Costs,Ict,4500
Redditch Borough Council,29/04/2020,337770,181050,35.00 ,7.00 ,Afc Lock & Safe Ltd,77,Economic Development,Building Maintenance,3100
Redditch Borough Council,29/04/2020,337770,181050,73.54 ,14.71 ,Afc Lock & Safe Ltd,77,Poplar Road Shops,Building Maintenance,3100
Redditch Borough Council,29/04/2020,337770,181050,849.85 ,169.97 ,Afc Lock & Safe Ltd,77,Town Hall,Building Maintenance,3100
Redditch Borough Council,29/04/2020,337770,181050,35.00 ,7.00 ,Afc Lock & Safe Ltd,77,Woodrow Shopping Centre,Building Maintenance,3100
Redditch Borough Council,07/04/2020,336099,CD970869696,645.27 ,129.05 ,Agrovista (Sherriff) Uk Ltd,5562,Grounds Maint - Parks,Materials,4170
Redditch Borough Council,29/04/2020,337502,IN10768,1000.00 ,0.00 ,Aldi Stores Ltd,43164,Rent-Rebates,Other Fees,4360
Redditch Borough Council,22/04/2020,337807,0000638548REDT,624.44 ,124.89 ,Allpay Ltd,107898,Other Special Services,Other Fees,4360
Redditch Borough Council,03/04/2020,337031,CLE0262,1920.00 ,0.00 ,Am & Pm Cleaning Solutions,35039,Hra Voids Repairs,Materials,4170
Redditch Borough Council,22/04/2020,337789,INV-0660,1550.00 ,310.00 ,Anywhere Care Ltd,101663,Lifeline - Support,Furniture & Equipment Purchase,4000
Redditch Borough Council,22/04/2020,337818,INV-0649,720.00 ,144.00 ,Anywhere Care Ltd,101663,Lifeline - Support,Furniture & Equipment Purchase,4000
Redditch Borough Council,22/04/2020,337286,HS00777,1980.00 ,0.00 ,Appletree Guest House,81,Bed And Breakfast Accom.,Rents & Service Charge,3350
Redditch Borough Council,22/04/2020,337287,HS00778,654.50 ,0.00 ,Appletree Guest House,81,Bed And Breakfast Accom.,Rents & Service Charge,3350
Redditch Borough Council,22/04/2020,337697,SW00230175,684.70 ,136.94 ,Arden Construction Ltd,2033,Hra Responsive Repairs,Building Maintenance,3100
Redditch Borough Council,22/04/2020,337700,SW00230174,1219.91 ,243.98 ,Arden Construction Ltd,2033,Hra Responsive Repairs,Building Maintenance,3100
Redditch Borough Council,22/04/2020,337703,SW00230306,511.54 ,102.31 ,Arden Construction Ltd,2033,Hra Responsive Repairs,Building Maintenance,3100
Redditch Borough Council,22/04/2020,336638,8120,1700.00 ,340.00 ,Autocross Euroshel Ltd,2642,Co-Ordination,Other Fees,4360
Redditch Borough Council,22/04/2020,336639,8121,1700.00 ,340.00 ,Autocross Euroshel Ltd,2642,Co-Ordination,Other Fees,4360
Redditch Borough Council,03/04/2020,335841,647551,2493.22 ,498.64 ,Axis Europe Plc,104992,Rbc Balance Sheet,Contract Payments,8131
Redditch Borough Council,07/04/2020,335880,647566,590.78 ,118.16 ,Axis Europe Plc,104992,Palace Theatre,Rl Responsive,3120
Redditch Borough Council,07/04/2020,336939,653804,764.46 ,152.89 ,Axis Europe Plc,104992,Hra Responsive Repairs,Building Maintenance,3100
Redditch Borough Council,07/04/2020,336940,653805,588.84 ,117.77 ,Axis Europe Plc,104992,Hra Responsive Repairs,Building Maintenance,3100
Redditch Borough Council,22/04/2020,335840,647554,5093.41 ,1018.68 ,Axis Europe Plc,104992,Hsg Capital,Materials,4170
Redditch Borough Council,22/04/2020,335840,647554,556.67 ,111.34 ,Axis Europe Plc,104992,Rbc Balance Sheet,Contract Payments,8131
Redditch Borough Council,22/04/2020,336962,653808,2493.22 ,498.64 ,Axis Europe Plc,104992,Rbc Balance Sheet,Contract Payments,8131
Redditch Borough Council,22/04/2020,337666,655788,863.88 ,172.78 ,Axis Europe Plc,104992,Hra Responsive Repairs,Building Maintenance,3100
Redditch Borough Council,22/04/2020,337677,655801,786.66 ,157.33 ,Axis Europe Plc,104992,Hra Responsive Repairs,Building Maintenance,3100
Redditch Borough Council,22/04/2020,337678,655802,1380.70 ,276.14 ,Axis Europe Plc,104992,Hra Responsive Repairs,Building Maintenance,3100
Redditch Borough Council,22/04/2020,337684,655808,1000.00 ,200.00 ,Axis Europe Plc,104992,Hra Responsive Repairs,Building Maintenance,3100
Redditch Borough Council,22/04/2020,337685,655809,818.81 ,163.76 ,Axis Europe Plc,104992,Hra Responsive Repairs,Building Maintenance,3100
Redditch Borough Council,22/04/2020,337686,653807,-2493.22 ,-498.64 ,Axis Europe Plc,104992,Rbc Balance Sheet,Contract Payments,8131
Redditch Borough Council,29/04/2020,337376,655786,41420.47 ,8284.09 ,Axis Europe Plc,104992,Rbc Balance Sheet,Contract Payments,8131
Redditch Borough Council,29/04/2020,337663,655798,616.37 ,123.27 ,Axis Europe Plc,104992,Abbey Stadium,Rl Responsive,3120
Redditch Borough Council,29/04/2020,337673,655796,537.50 ,107.50 ,Axis Europe Plc,104992,Abbey Stadium,Rl Responsive,3120
Redditch Borough Council,29/04/2020,337681,655805,577.62 ,115.52 ,Axis Europe Plc,104992,Economic Development,Building Maintenance,3100
Redditch Borough Council,22/04/2020,337827,10991,0.00 ,179.70 ,Ball Industries,61784,Crossgate Stocks,Stock Account (Cedar),1201
Redditch Borough Council,03/04/2020,337225,BM4126,3372.22 ,674.44 ,Bell Group,61587,Arrow Valley C'Side Centre,Rl Planned,3130
Redditch Borough Council,03/04/2020,337227,BM4131,640.58 ,128.12 ,Bell Group,61587,Woodrow Shopping Centre,Building Maintenance,3100
Redditch Borough Council,07/04/2020,337386,10087619,7295.40 ,1459.08 ,Bevan Brittan,5161,Business Centres - Rubicon,Other Fees,4360
Redditch Borough Council,29/04/2020,337748,9002894688,968.41 ,193.68 ,Birmingham City Council,1035,Central Post,Postage,4400
Redditch Borough Council,22/04/2020,337784,DEDS APR 20,579.51 ,0.00 ,Birmingham Hospital Saturday Fund,1508,Rbc Balance Sheet,Payroll Deductions,1488
Redditch Borough Council,03/04/2020,337060,B2270,0.00 ,108.68 ,Brisol Limited,7217,Crossgate Stocks,Stock Account (Cedar),1201
Redditch Borough Council,03/04/2020,337098,218879,626.61 ,125.32 ,Bristow  & Sutor,157,Council Tax,Other Fees,4360
Redditch Borough Council,03/04/2020,337098,218879,1762.95 ,0.00 ,Bristow  & Sutor,157,Vat Control Account,Vat Input Tax Adjustments,2994
Redditch Borough Council,22/04/2020,337690,219413,2.62 ,0.52 ,Bristow  & Sutor,157,Council Tax,Other Fees,4360
Redditch Borough Council,22/04/2020,337690,219413,798.00 ,0.00 ,Bristow  & Sutor,157,Vat Control Account,Vat Input Tax Adjustments,2994
Redditch Borough Council,07/04/2020,337420,Q009J1,1467.52 ,279.50 ,British Telecommunications Plc,153,Central Switchboard,Ict,4500
Redditch Borough Council,07/04/2020,337421,Q009L6,1820.76 ,364.15 ,British Telecommunications Plc,153,Central Switchboard,Ict,4500
Redditch Borough Council,07/04/2020,337422,Q010ZM,1397.52 ,279.50 ,British Telecommunications Plc,153,Central Switchboard,Ict,4500
Redditch Borough Council,07/04/2020,337053,4/2019/2020,18750.00 ,0.00 ,Bromsgrove Cab,60305,Grants To Vol Sector,Grants & Subscriptions,4650
Redditch Borough Council,29/04/2020,336503,801335774,7841.60 ,1568.32 ,Bromsgrove District Council,1114,Town Hall,Refuse Collection/Waste Dispos,3602
Redditch Borough Council,29/04/2020,336504,801335782,906.88 ,181.38 ,Bromsgrove District Council,1114,Stores Oncost Account,Refuse Collection/Waste Dispos,3602
Redditch Borough Council,29/04/2020,336505,801335790,629.72 ,125.94 ,Bromsgrove District Council,1114,Crossgates Depot,Refuse Collection/Waste Dispos,3602
Redditch Borough Council,29/04/2020,336508,801335820,2720.64 ,544.13 ,Bromsgrove District Council,1114,Business Centres - Hemming Roa,Refuse Collection/Waste Dispos,3602
Redditch Borough Council,22/04/2020,337804,IN-000009950000,1015.00 ,203.00 ,Browne Jacobson Llp,67304,Legal Services,Professional Fees,4350
Redditch Borough Council,22/04/2020,337805,402962,1542.50 ,308.50 ,Browne Jacobson Llp,67304,Legal Services,Professional Fees,4350
Redditch Borough Council,07/04/2020,337369,3590,15520.00 ,0.00 ,Caring For Communities And People,11410,Homelessness Administration,Grants & Subscriptions,4650
Redditch Borough Council,03/04/2020,336700,RED/271631,1229.92 ,245.99 ,Cef - City Electrical Factors Ltd,113,Hra Responsive Repairs,Materials,4170
Redditch Borough Council,03/04/2020,336784,RED/272168,791.94 ,158.39 ,Cef - City Electrical Factors Ltd,113,Hra Responsive Repairs,Materials,4170
Redditch Borough Council,03/04/2020,337243,038824,501.73 ,100.35 ,Cfh Docmail Ltd,65783,Non-Domestic Rates,Photocopying  & Print,4300
Redditch Borough Council,15/04/2020,337549,038657,794.70 ,158.94 ,Cfh Docmail Ltd,65783,Lifeline - Support,Photocopying  & Print,4300
Redditch Borough Council,22/04/2020,337778,39308,856.23 ,171.25 ,Cfh Docmail Ltd,65783,Housing Locality Service,Postage,4400
Redditch Borough Council,22/04/2020,337780,39304,6095.59 ,1219.12 ,Cfh Docmail Ltd,65783,Central Post,Postage,4400
Redditch Borough Council,22/04/2020,337781,PRODUCTION,4164.64 ,832.93 ,Cfh Docmail Ltd,65783,Central Post,Postage,4400
Redditch Borough Council,03/04/2020,337076,85810,552.72 ,110.54 ,Citron Hygiene Uk Limited,107896,Community Development,Refuse Collection/Waste Dispos,3602
Redditch Borough Council,03/04/2020,337129,C/HH193210,59263.00 ,11852.60 ,Civica Uk Limited,1233,Rbc Balance Sheet,Contract Payments,8131
Redditch Borough Council,29/04/2020,337416,C/RB194949,7500.00 ,1500.00 ,Civica Uk Limited,1233,Revenues,Ict,4500
Redditch Borough Council,03/04/2020,337256,SIN233224,675.00 ,135.00 ,Clearwater Technology Ltd,6699,Arrow Valley C'Side Centre,Building Maintenance,3100
Redditch Borough Council,15/04/2020,335671,SIN231007,1782.28 ,356.46 ,Clearwater Technology Ltd,6699,Hra S/Charge Eligible Works,Building Maintenance,3100
Redditch Borough Council,03/04/2020,337228,SC37561,1380.61 ,276.12 ,D & K Heating Services Limited,62638,Town Hall,Building Maintenance,3100
Redditch Borough Council,22/04/2020,337773,19/20 Q4 100316,71.51 ,0.00 ,Dclg,7434,Item 8 Debit,Interest,5602
Redditch Borough Council,22/04/2020,337773,19/20 Q4 100316,194553.32 ,0.00 ,Dclg,7434,Rbc Balance Sheet,Useable Capital Receipts Hra,2407
Redditch Borough Council,03/04/2020,334540,DE11286366,513.87 ,102.77 ,Dennis Eagle Ltd,250,Household Waste Collection,R&M Of Vehicles,3700
Redditch Borough Council,03/04/2020,336537,DE30051806,-811.70 ,-162.34 ,Dennis Eagle Ltd,250,Household Waste Collection,R&M Of Vehicles,3700
Redditch Borough Council,03/04/2020,337190,DXPI50378,1957.50 ,391.50 ,Digital Exchange Products Ltd,108418,Env Services Mgmt & Support,Ict,4500
Redditch Borough Council,03/04/2020,337044,INV0133935,8600.00 ,0.00 ,Doro Care Ab,7424,Rbc Balance Sheet,Machinery & Equip - Purchase,8152
Redditch Borough Council,07/04/2020,337389,137,2665.10 ,0.00 ,Dr Richard Wilkinson,5065,Crematoria,Professional Fees,4350
Redditch Borough Council,22/04/2020,337716,1285526136,2.75 ,0.55 ,E E Limited ****Airtime Only****,3656,Abbey Stadium,Telephones,4450
Redditch Borough Council,22/04/2020,337716,1285526136,52.25 ,10.45 ,E E Limited ****Airtime Only****,3656,Anti-Social Behaviour,Telephones,4450
Redditch Borough Council,22/04/2020,337716,1285526136,54.50 ,10.90 ,E E Limited ****Airtime Only****,3656,Arts Development And Support,Telephones,4450
Redditch Borough Council,22/04/2020,337716,1285526136,2.75 ,0.55 ,E E Limited ****Airtime Only****,3656,Batchley Neighbourhood Office,Telephones,4450
Redditch Borough Council,22/04/2020,337716,1285526136,10.25 ,2.05 ,E E Limited ****Airtime Only****,3656,B'Grove Community Safety,Telephones,4450
Redditch Borough Council,22/04/2020,337716,1285526136,5.50 ,1.10 ,E E Limited ****Airtime Only****,3656,Bromsgrove Building Services,Telephones,4450
Redditch Borough Council,22/04/2020,337716,1285526136,2.75 ,0.55 ,E E Limited ****Airtime Only****,3656,Bromsgrove Cctv,Telephones,4450
Redditch Borough Council,22/04/2020,337716,1285526136,10.25 ,2.05 ,E E Limited ****Airtime Only****,3656,Business Develpment Team,Telephones,4450
Redditch Borough Council,22/04/2020,337716,1285526136,10.25 ,2.05 ,E E Limited ****Airtime Only****,3656,Cannock Lifeline,Telephones,4450
Redditch Borough Council,22/04/2020,337716,1285526136,13.00 ,2.60 ,E E Limited ****Airtime Only****,3656,Caretakers,Telephones,4450
Redditch Borough Council,22/04/2020,337716,1285526136,2.75 ,0.55 ,E E Limited ****Airtime Only****,3656,Cleaners Oncost,Telephones,4450
Redditch Borough Council,22/04/2020,337716,1285526136,239.00 ,47.80 ,E E Limited ****Airtime Only****,3656,Community Development,Telephones,4450
Redditch Borough Council,22/04/2020,337716,1285526136,29.75 ,5.95 ,E E Limited ****Airtime Only****,3656,Community Parks & Open Spaces,Telephones,4450
Redditch Borough Council,22/04/2020,337716,1285526136,30.25 ,6.05 ,E E Limited ****Airtime Only****,3656,Community Safety,Telephones,4450
Redditch Borough Council,22/04/2020,337716,1285526136,32.25 ,6.45 ,E E Limited ****Airtime Only****,3656,Concessionary Travel,Telephones,4450
Redditch Borough Council,22/04/2020,337716,1285526136,10.25 ,2.05 ,E E Limited ****Airtime Only****,3656,Cultural Services Manager,Telephones,4450
Redditch Borough Council,22/04/2020,337716,1285526136,2.75 ,0.55 ,E E Limited ****Airtime Only****,3656,Customer Support,Telephones,4450
Redditch Borough Council,22/04/2020,337716,1285526136,2.75 ,0.55 ,E E Limited ****Airtime Only****,3656,Data Base & Hsg Performance,Telephones,4450
Redditch Borough Council,22/04/2020,337716,1285526136,2.75 ,0.55 ,E E Limited ****Airtime Only****,3656,Env Services Mgmt & Support,Telephones,4450
Redditch Borough Council,22/04/2020,337716,1285526136,17.25 ,3.45 ,E E Limited ****Airtime Only****,3656,Executive Director Lec,Telephones,4450
Redditch Borough Council,22/04/2020,337716,1285526136,10.25 ,2.05 ,E E Limited ****Airtime Only****,3656,Finance,Telephones,4450
Redditch Borough Council,22/04/2020,337716,1285526136,2.75 ,0.55 ,E E Limited ****Airtime Only****,3656,Forge Mill Museum,Telephones,4450
Redditch Borough Council,22/04/2020,337716,1285526136,10.25 ,2.05 ,E E Limited ****Airtime Only****,3656,Head Of Community Services,Telephones,4450
Redditch Borough Council,22/04/2020,337716,1285526136,10.25 ,2.05 ,E E Limited ****Airtime Only****,3656,Head Of Environmental Ser,Telephones,4450
Redditch Borough Council,22/04/2020,337716,1285526136,13.75 ,2.75 ,E E Limited ****Airtime Only****,3656,Head Of Leisure & Cultural Ser,Telephones,4450
Redditch Borough Council,22/04/2020,337716,1285526136,67.25 ,13.45 ,E E Limited ****Airtime Only****,3656,Head Of Planning & Regeneratio,Telephones,4450
Redditch Borough Council,22/04/2020,337716,1285526136,586.45 ,117.29 ,E E Limited ****Airtime Only****,3656,Housing Locality Service,Telephones,4450
Redditch Borough Council,22/04/2020,337716,1285526136,2.75 ,0.55 ,E E Limited ****Airtime Only****,3656,Housing System Project,Telephones,4450
Redditch Borough Council,22/04/2020,337716,1285526136,32.25 ,6.45 ,E E Limited ****Airtime Only****,3656,Hra Equipment & Adaptations,Telephones,4450
Redditch Borough Council,22/04/2020,337716,1285526136,10.25 ,2.05 ,E E Limited ****Airtime Only****,3656,Hra Interim Arrangements,Telephones,4450
Redditch Borough Council,22/04/2020,337716,1285526136,74.75 ,14.95 ,E E Limited ****Airtime Only****,3656,Hra Responsive Repairs,Telephones,4450
Redditch Borough Council,22/04/2020,337716,1285526136,7.00 ,1.40 ,E E Limited ****Airtime Only****,3656,Hra S/Charge Eligible Works,Telephones,4450
Redditch Borough Council,22/04/2020,337716,1285526136,40.50 ,8.10 ,E E Limited ****Airtime Only****,3656,Hra Voids Repairs,Telephones,4450
Redditch Borough Council,22/04/2020,337716,1285526136,13.00 ,2.60 ,E E Limited ****Airtime Only****,3656,Hsg Capital,Telephones,4450
Redditch Borough Council,22/04/2020,337716,1285526136,81.03 ,16.21 ,E E Limited ****Airtime Only****,3656,Hsg Options,Telephones,4450
Redditch Borough Council,22/04/2020,337716,1285526136,22.75 ,4.55 ,E E Limited ****Airtime Only****,3656,Human Resources,Telephones,4450
Redditch Borough Council,22/04/2020,337716,1285526136,12.50 ,2.50 ,E E Limited ****Airtime Only****,3656,Indoor Sports & Rec Facilities,Telephones,4450
Redditch Borough Council,22/04/2020,337716,1285526136,5.50 ,1.10 ,E E Limited ****Airtime Only****,3656,Land Drainage,Telephones,4450
Redditch Borough Council,22/04/2020,337716,1285526136,124.50 ,24.90 ,E E Limited ****Airtime Only****,3656,Lifeline - Support,Telephones,4450
Redditch Borough Council,22/04/2020,337716,1285526136,44.75 ,8.95 ,E E Limited ****Airtime Only****,3656,Management - Meeting Rooms,Telephones,4450
Redditch Borough Council,22/04/2020,337716,1285526136,451.14 ,90.23 ,E E Limited ****Airtime Only****,3656,Members Services,Telephones,4450
Redditch Borough Council,22/04/2020,337716,1285526136,2.75 ,0.55 ,E E Limited ****Airtime Only****,3656,Palace Theatre,Telephones,4450
Redditch Borough Council,22/04/2020,337716,1285526136,85.50 ,17.10 ,E E Limited ****Airtime Only****,3656,Planned,Telephones,4450
Redditch Borough Council,22/04/2020,337716,1285526136,41.00 ,8.20 ,E E Limited ****Airtime Only****,3656,Property Services,Telephones,4450
Redditch Borough Council,22/04/2020,337716,1285526136,23.25 ,4.65 ,E E Limited ****Airtime Only****,3656,Public Buildings,Telephones,4450
Redditch Borough Council,22/04/2020,337716,1285526136,241.75 ,48.35 ,E E Limited ****Airtime Only****,3656,Rbc Balance Sheet,Holding/Suspense/Contra Accs,9008
Redditch Borough Council,22/04/2020,337716,1285526136,10.25 ,2.05 ,E E Limited ****Airtime Only****,3656,Rbc Vehicle Workhop,Telephones,4450
Redditch Borough Council,22/04/2020,337716,1285526136,21.50 ,4.30 ,E E Limited ****Airtime Only****,3656,Redditch Place Teams General,Telephones,4450
Redditch Borough Council,22/04/2020,337716,1285526136,51.57 ,10.31 ,E E Limited ****Airtime Only****,3656,Revenues,Telephones,4450
Redditch Borough Council,22/04/2020,337716,1285526136,20.50 ,4.10 ,E E Limited ****Airtime Only****,3656,Safer & Stronger Communities,Telephones,4450
Redditch Borough Council,22/04/2020,337716,1285526136,2.75 ,0.55 ,E E Limited ****Airtime Only****,3656,Snn - Rbc,Telephones,4450
Redditch Borough Council,22/04/2020,337716,1285526136,58.25 ,11.65 ,E E Limited ****Airtime Only****,3656,Sports Dev & Com'Ty Recreation,Telephones,4450
Redditch Borough Council,22/04/2020,337716,1285526136,33.00 ,6.60 ,E E Limited ****Airtime Only****,3656,St Davids House,Telephones,4450
Redditch Borough Council,22/04/2020,337716,1285526136,9.75 ,1.95 ,E E Limited ****Airtime Only****,3656,Town Hall,Telephones,4450
Redditch Borough Council,22/04/2020,337716,1285526136,86.75 ,17.35 ,E E Limited ****Airtime Only****,3656,Welfare Support,Telephones,4450
Redditch Borough Council,22/04/2020,337716,1285526136,2.75 ,0.55 ,E E Limited ****Airtime Only****,3656,Winyates Neighbourhood Office,Telephones,4450
Redditch Borough Council,22/04/2020,337739,2020/1675820,1084.37 ,216.87 ,Eca,193,Hra Responsive Repairs,Other Fees,4360
Redditch Borough Council,03/04/2020,337137,RED/361210,0.00 ,159.88 ,Edwards Buildbase,188,Crossgate Stocks,Stock Account (Cedar),1201
Redditch Borough Council,03/04/2020,337143,RED/360838,0.00 ,105.47 ,Edwards Buildbase,188,Crossgate Stocks,Stock Account (Cedar),1201
Redditch Borough Council,15/04/2020,337567,RED/361586,0.00 ,189.40 ,Edwards Buildbase,188,Crossgate Stocks,Stock Account (Cedar),1201
Redditch Borough Council,15/04/2020,337568,RED/361587,0.00 ,128.30 ,Edwards Buildbase,188,Crossgate Stocks,Stock Account (Cedar),1201
Redditch Borough Council,22/04/2020,337819,BOR/359523,0.00 ,128.30 ,Edwards Buildbase,188,Crossgate Stocks,Stock Account (Cedar),1201
Redditch Borough Council,22/04/2020,337820,RED/361536,0.00 ,128.39 ,Edwards Buildbase,188,Crossgate Stocks,Stock Account (Cedar),1201
Redditch Borough Council,22/04/2020,337750,SIN2004EC10293,2029.27 ,405.85 ,Ergo Computing Uk Ltd,107773,Covid-19,Ict,4500
Redditch Borough Council,22/04/2020,337751,SIN2004EC10294,2029.28 ,405.86 ,Ergo Computing Uk Ltd,107773,Covid-19,Ict,4500
Redditch Borough Council,03/04/2020,335591,IM24523,634.90 ,126.98 ,European Asbestos Services Ltd,105319,Rbc Balance Sheet,Contract Payments,8131
Redditch Borough Council,07/04/2020,336771,IM24846,657.40 ,131.48 ,European Asbestos Services Ltd,105319,Rbc Balance Sheet,Contract Payments,8131
Redditch Borough Council,07/04/2020,336772,IM24855,994.90 ,198.98 ,European Asbestos Services Ltd,105319,Rbc Balance Sheet,Contract Payments,8131
Redditch Borough Council,07/04/2020,336773,IM24858,941.21 ,188.22 ,European Asbestos Services Ltd,105319,Rbc Balance Sheet,Contract Payments,8131
Redditch Borough Council,07/04/2020,336774,IM24822,969.12 ,193.80 ,European Asbestos Services Ltd,105319,Rbc Balance Sheet,Contract Payments,8131
Redditch Borough Council,07/04/2020,336776,IA24856,1377.40 ,275.48 ,European Asbestos Services Ltd,105319,Rbc Balance Sheet,Contract Payments,8131
Redditch Borough Council,07/04/2020,337092,IM24847,994.90 ,198.98 ,European Asbestos Services Ltd,105319,Rbc Balance Sheet,Contract Payments,8131
Redditch Borough Council,03/04/2020,337191,0001572042,7476.00 ,1495.20 ,European Electronique,1920,Covid-19,Ict,4500
Redditch Borough Council,03/04/2020,337111,436528,0.00 ,172.80 ,Evolve Corporate Ltd (T/A Pk Safety),103357,Crossgate Stocks,Stock Account (Cedar),1201
Redditch Borough Council,03/04/2020,337030,20101083,1566.36 ,313.27 ,Facultatieve Technologies,38,Crematoria,Furniture & Equipment R&M,4002
Redditch Borough Council,03/04/2020,337198,20101352,934.14 ,186.83 ,Facultatieve Technologies,38,Crematoria,Furniture & Equipment Purchase,4000
Redditch Borough Council,03/04/2020,337223,1856,1000.49 ,200.10 ,Fence-Line Ltd,61339,Community Parks & Open Spaces,Other Fees,4360
Redditch Borough Council,03/04/2020,337224,1855,2480.84 ,496.17 ,Fence-Line Ltd,61339,Community Parks & Open Spaces,Other Fees,4360
Redditch Borough Council,15/04/2020,334866,53488,205.79 ,41.16 ,Filterite Limited,58,Abbey Stadium,Rl Responsive,3120
Redditch Borough Council,15/04/2020,334866,53488,364.11 ,72.82 ,Filterite Limited,58,Palace Theatre,Rl Responsive,3120
Redditch Borough Council,15/04/2020,334866,53488,780.50 ,156.12 ,Filterite Limited,58,Town Hall,Building Maintenance,3100
Redditch Borough Council,15/04/2020,336793,2003265,1267.71 ,253.54 ,Fire Safe Services Ltd,4585,Crossgates Depot,Building Maintenance,3100
Redditch Borough Council,15/04/2020,336793,2003265,240.40 ,48.08 ,Fire Safe Services Ltd,4585,Crossgates House,Building Maintenance,3100
Redditch Borough Council,29/04/2020,337837,20396,0.00 ,156.00 ,Focal Image.Co.Uk (Bromsgrove) Limited,1389,Crossgate Stocks,Stock Account (Cedar),1201
Redditch Borough Council,22/04/2020,337387,21464422,1000.00 ,0.00 ,Francotyp-Postalia Ltd     (Postage Only),35551,Central Post,Postage,4400
Redditch Borough Council,29/04/2020,337979,21481366,1000.00 ,0.00 ,Francotyp-Postalia Ltd     (Postage Only),35551,Central Post,Postage,4400
Redditch Borough Council,22/04/2020,337714,GA1534004,82.25 ,16.45 ,Gamma Business Communications Ltd,5650,Abbey Stadium,Telephones,4450
Redditch Borough Council,22/04/2020,337714,GA1534004,10.09 ,2.02 ,Gamma Business Communications Ltd,5650,Arrow Valley C'Side Centre,Telephones,4450
Redditch Borough Council,22/04/2020,337714,GA1534004,10.09 ,2.02 ,Gamma Business Communications Ltd,5650,Batchley C C,Telephones,4450
Redditch Borough Council,22/04/2020,337714,GA1534004,10.09 ,2.02 ,Gamma Business Communications Ltd,5650,Batchley Neighbourhood Office,Telephones,4450
Redditch Borough Council,22/04/2020,337714,GA1534004,85.20 ,17.05 ,Gamma Business Communications Ltd,5650,Business Centres - Greenlands,Telephones,4450
Redditch Borough Council,22/04/2020,337714,GA1534004,60.44 ,12.09 ,Gamma Business Communications Ltd,5650,Business Centres - Rubicon,Telephones,4450
Redditch Borough Council,22/04/2020,337714,GA1534004,584.50 ,116.89 ,Gamma Business Communications Ltd,5650,Central Switchboard,Telephones,4450
Redditch Borough Council,22/04/2020,337714,GA1534004,26.23 ,5.25 ,Gamma Business Communications Ltd,5650,Community Centres,Telephones,4450
Redditch Borough Council,22/04/2020,337714,GA1534004,104.10 ,20.83 ,Gamma Business Communications Ltd,5650,Community Development,Telephones,4450
Redditch Borough Council,22/04/2020,337714,GA1534004,48.23 ,9.64 ,Gamma Business Communications Ltd,5650,Crematoria,Telephones,4450
Redditch Borough Council,22/04/2020,337714,GA1534004,10.09 ,2.02 ,Gamma Business Communications Ltd,5650,Crossgates Depot,Telephones,4450
Redditch Borough Council,22/04/2020,337714,GA1534004,10.18 ,2.04 ,Gamma Business Communications Ltd,5650,Crossgates House,Telephones,4450
Redditch Borough Council,22/04/2020,337714,GA1534004,54.42 ,10.87 ,Gamma Business Communications Ltd,5650,Economic Development,Telephones,4450
Redditch Borough Council,22/04/2020,337714,GA1534004,31.61 ,6.31 ,Gamma Business Communications Ltd,5650,Forge Mill Museum,Telephones,4450
Redditch Borough Council,22/04/2020,337714,GA1534004,20.22 ,4.05 ,Gamma Business Communications Ltd,5650,Housing Locality Service,Telephones,4450
Redditch Borough Council,22/04/2020,337714,GA1534004,10.09 ,2.02 ,Gamma Business Communications Ltd,5650,Hra S/Charge Eligible Works,Building Maintenance,3100
Redditch Borough Council,22/04/2020,337714,GA1534004,23.48 ,4.70 ,Gamma Business Communications Ltd,5650,Indoor Sports & Rec Facilities,Telephones,4450
Redditch Borough Council,22/04/2020,337714,GA1534004,34.31 ,6.85 ,Gamma Business Communications Ltd,5650,Lifeline - Support,Telephones,4450
Redditch Borough Council,22/04/2020,337714,GA1534004,20.18 ,4.04 ,Gamma Business Communications Ltd,5650,Oakenshaw M R,Telephones,4450
Redditch Borough Council,22/04/2020,337714,GA1534004,10.10 ,2.02 ,Gamma Business Communications Ltd,5650,Other Special Services,Telephones,4450
Redditch Borough Council,22/04/2020,337714,GA1534004,97.56 ,19.50 ,Gamma Business Communications Ltd,5650,Palace Theatre,Telephones,4450
Redditch Borough Council,22/04/2020,337714,GA1534004,21.33 ,4.27 ,Gamma Business Communications Ltd,5650,Pitcheroak Golf Course,Telephones,4450
Redditch Borough Council,22/04/2020,337714,GA1534004,520.42 ,104.08 ,Gamma Business Communications Ltd,5650,Rbc It Costs,Telephones,4450
Redditch Borough Council,22/04/2020,337714,GA1534004,10.09 ,2.02 ,Gamma Business Communications Ltd,5650,Rbc Vehicle Workhop,Telephones,4450
Redditch Borough Council,22/04/2020,337714,GA1534004,54.47 ,10.90 ,Gamma Business Communications Ltd,5650,St Davids House,Telephones,4450
Redditch Borough Council,22/04/2020,337714,GA1534004,52.27 ,10.46 ,Gamma Business Communications Ltd,5650,Town Hall,Telephones,4450
Redditch Borough Council,22/04/2020,337714,GA1534004,10.09 ,2.02 ,Gamma Business Communications Ltd,5650,Windmill M R,Telephones,4450
Redditch Borough Council,22/04/2020,337714,GA1534004,9.50 ,1.90 ,Gamma Business Communications Ltd,5650,Winyates Green M R,Telephones,4450
Redditch Borough Council,03/04/2020,336637,51857,506.40 ,101.28 ,Go 2 Telecom Ltd,2598,Lifeline - Support,Furniture & Equipment Purchase,4000
Redditch Borough Council,03/04/2020,337222,64487,0.00 ,322.67 ,H & S Polythene Ltd,61087,Crossgate Stocks,Stock Account (Cedar),1201
Redditch Borough Council,15/04/2020,337597,111806446,0.00 ,3820.63 ,Hall Fuels (Watson Fuels),6959,Crossgate Stocks,Stock Account (Cedar),1201
Redditch Borough Council,03/04/2020,337189,17647,1500.00 ,300.00 ,Henry,108043,Community Development,Professional Fees,4350
Redditch Borough Council,29/04/2020,337973,17648,2334.00 ,462.00 ,Henry,108043,Community Development,Furniture & Equipment Purchase,4000
Redditch Borough Council,29/04/2020,338012,S117915,149.00 ,29.80 ,Horizon Specialist Contracting Ltd,1633,Crematoria,Building Maintenance,3100
Redditch Borough Council,29/04/2020,338012,S117915,104.00 ,20.80 ,Horizon Specialist Contracting Ltd,1633,Crossgates Depot,Building Maintenance,3100
Redditch Borough Council,29/04/2020,338012,S117915,197.00 ,39.40 ,Horizon Specialist Contracting Ltd,1633,Crossgates House,Building Maintenance,3100
Redditch Borough Council,29/04/2020,338012,S117915,104.00 ,20.80 ,Horizon Specialist Contracting Ltd,1633,Palace Theatre,Rl Planned,3130
Redditch Borough Council,29/04/2020,338012,S117915,133.00 ,26.60 ,Horizon Specialist Contracting Ltd,1633,Town Hall,Building Maintenance,3100
Redditch Borough Council,03/04/2020,337090,HT251164559,873.66 ,174.73 ,Hughes Redditch,5092,Homelessness Administration,Grants & Subscriptions,4650
Redditch Borough Council,22/04/2020,337761,AL61290,680.00 ,136.00 ,Inform Cpi Ltd,7102,Revenues -Rbc Only,Other Fees,4360
Redditch Borough Council,03/04/2020,337159,4787580,3390.56 ,678.11 ,Insight Direct Uk Ltd,2755,Covid-19,Other Fees,4360
Redditch Borough Council,03/04/2020,337028,A128148,600.00 ,120.00 ,Irrv,965,Revenues,Grants & Subscriptions,4650
Redditch Borough Council,03/04/2020,337028,A128148,600.00 ,120.00 ,Irrv,965,Welfare Support,Grants & Subscriptions,4650
Redditch Borough Council,03/04/2020,337183,5307,816.88 ,163.38 ,Kelbec Civils Ltd,4794,Off-Street Parking,Building Maintenance,3100
Redditch Borough Council,07/04/2020,337437,5312,344.80 ,68.96 ,Kelbec Civils Ltd,4794,Crossgates House,Building Maintenance,3100
Redditch Borough Council,07/04/2020,337437,5312,1570.20 ,314.04 ,Kelbec Civils Ltd,4794,Forge Mill Museum,Rl Planned,3130
Redditch Borough Council,07/04/2020,337437,5312,612.70 ,122.54 ,Kelbec Civils Ltd,4794,Pitcheroak Golf Course,Rl Planned,3130
Redditch Borough Council,07/04/2020,337437,5312,70.70 ,14.14 ,Kelbec Civils Ltd,4794,Town Hall,Building Maintenance,3100
Redditch Borough Council,22/04/2020,335668,5268,667.60 ,133.52 ,Kelbec Civils Ltd,4794,Grounds Maint - Parks,Grounds Maintenance,3200
Redditch Borough Council,22/04/2020,336657,5289,6064.98 ,1213.00 ,Kelbec Civils Ltd,4794,Rbc Balance Sheet,Direct Payments,8132
Redditch Borough Council,22/04/2020,337713,5294,89161.65 ,17832.33 ,Kelbec Civils Ltd,4794,Rbc Balance Sheet,Direct Payments,8132
Redditch Borough Council,22/04/2020,337832,5286,344.80 ,68.96 ,Kelbec Civils Ltd,4794,Community Development,Building Maintenance,3100
Redditch Borough Council,22/04/2020,337832,5286,1442.00 ,288.40 ,Kelbec Civils Ltd,4794,Crematoria,Building Maintenance,3100
Redditch Borough Council,22/04/2020,337832,5286,344.80 ,68.96 ,Kelbec Civils Ltd,4794,Crossgates Depot,Building Maintenance,3100
Redditch Borough Council,22/04/2020,337832,5286,679.30 ,135.86 ,Kelbec Civils Ltd,4794,Easemore Road (Where Next),Building Maintenance,3100
Redditch Borough Council,22/04/2020,337832,5286,344.80 ,68.96 ,Kelbec Civils Ltd,4794,Economic Development,Building Maintenance,3100
Redditch Borough Council,22/04/2020,337832,5286,344.80 ,68.96 ,Kelbec Civils Ltd,4794,Management - Meeting Rooms,Rl Responsive,3120
Redditch Borough Council,22/04/2020,337832,5286,957.50 ,191.50 ,Kelbec Civils Ltd,4794,Town Hall,Building Maintenance,3100
Redditch Borough Council,22/04/2020,337826,0001032101,9632.69 ,1926.54 ,Kingdom,63839,Other Special Services,Cleaning & Supplies,3600
Redditch Borough Council,03/04/2020,337112,1150089088,1991.87 ,398.37 ,Konica Minolta Business Solutions (Uk) Ltd,103477,Print Facilities,Furniture & Equipment Rental,4001
Redditch Borough Council,07/04/2020,337413,90707,0.00 ,138.00 ,Landscape Supply Company,61692,Crossgate Stocks,Stock Account (Cedar),1201
Redditch Borough Council,22/04/2020,337735,00703761,756.00 ,151.20 ,Lester Aldridge Llp,64839,Corporate Staff Costs,Professional Fees,4350
Redditch Borough Council,29/04/2020,337941,00700386A,569.00 ,113.80 ,Lester Aldridge Llp,64839,Corporate Staff Costs,Professional Fees,4350
Redditch Borough Council,29/04/2020,337942,00700385,798.00 ,159.60 ,Lester Aldridge Llp,64839,Corporate Staff Costs,Professional Fees,4350
Redditch Borough Council,29/04/2020,336035,25909,2530.00 ,506.00 ,M3 Housing,67116,Hsg Capital,Grants & Subscriptions,4650
Redditch Borough Council,07/04/2020,337433,INVOICENUMBER,877.50 ,175.50 ,Maid Marions,5543,Other Special Services,Other Fees,4360
Redditch Borough Council,22/04/2020,337742,18632,877.50 ,175.50 ,Maid Marions,5543,Other Special Services,Other Fees,4360
Redditch Borough Council,03/04/2020,336710,IN33443,1915.96 ,383.22 ,Matrix Scm Ltd,5367,Finance,Agency Staff,3020
Redditch Borough Council,03/04/2020,336710,IN33443,883.14 ,176.63 ,Matrix Scm Ltd,5367,Housing Locality Service,Agency Staff,3020
Redditch Borough Council,03/04/2020,336710,IN33443,2970.10 ,594.06 ,Matrix Scm Ltd,5367,Hra Responsive Repairs,Agency Staff,3020
Redditch Borough Council,03/04/2020,336710,IN33443,3885.08 ,777.09 ,Matrix Scm Ltd,5367,Hra Voids Repairs,Agency Staff,3020
Redditch Borough Council,03/04/2020,336710,IN33443,2228.45 ,445.68 ,Matrix Scm Ltd,5367,Hsg Options,Agency Staff,3020
Redditch Borough Council,03/04/2020,336710,IN33443,432.39 ,86.47 ,Matrix Scm Ltd,5367,Human Resources,Agency Staff,3020
Redditch Borough Council,03/04/2020,336710,IN33443,4050.18 ,810.06 ,Matrix Scm Ltd,5367,Planned,Agency Staff,3020
Redditch Borough Council,03/04/2020,336710,IN33443,2275.90 ,455.23 ,Matrix Scm Ltd,5367,Property Services,Agency Staff,3020
Redditch Borough Council,03/04/2020,337069,IN33542,2052.35 ,410.50 ,Matrix Scm Ltd,5367,Finance,Agency Staff,3020
Redditch Borough Council,03/04/2020,337069,IN33542,881.79 ,176.36 ,Matrix Scm Ltd,5367,Housing Locality Service,Agency Staff,3020
Redditch Borough Council,03/04/2020,337069,IN33542,4912.43 ,982.58 ,Matrix Scm Ltd,5367,Hra Responsive Repairs,Agency Staff,3020
Redditch Borough Council,03/04/2020,337069,IN33542,2560.83 ,512.22 ,Matrix Scm Ltd,5367,Hra Voids Repairs,Agency Staff,3020
Redditch Borough Council,03/04/2020,337069,IN33542,2191.16 ,438.24 ,Matrix Scm Ltd,5367,Hsg Options,Agency Staff,3020
Redditch Borough Council,03/04/2020,337069,IN33542,335.49 ,67.11 ,Matrix Scm Ltd,5367,Human Resources,Agency Staff,3020
Redditch Borough Council,03/04/2020,337069,IN33542,3413.98 ,682.83 ,Matrix Scm Ltd,5367,Planned,Agency Staff,3020
Redditch Borough Council,03/04/2020,337069,IN33542,2723.57 ,544.78 ,Matrix Scm Ltd,5367,Property Services,Agency Staff,3020
Redditch Borough Council,03/04/2020,337069,IN33542,305.85 ,61.17 ,Matrix Scm Ltd,5367,St Davids House,Agency Staff,3020
Redditch Borough Council,29/04/2020,337278,IN33646,1159.43 ,231.90 ,Matrix Scm Ltd,5367,Finance,Agency Staff,3020
Redditch Borough Council,29/04/2020,337278,IN33646,881.34 ,176.27 ,Matrix Scm Ltd,5367,Housing Locality Service,Agency Staff,3020
Redditch Borough Council,29/04/2020,337278,IN33646,1826.99 ,365.41 ,Matrix Scm Ltd,5367,Hra Responsive Repairs,Agency Staff,3020
Redditch Borough Council,29/04/2020,337278,IN33646,1864.50 ,372.95 ,Matrix Scm Ltd,5367,Hra Voids Repairs,Agency Staff,3020
Redditch Borough Council,29/04/2020,337278,IN33646,2205.85 ,441.18 ,Matrix Scm Ltd,5367,Hsg Options,Agency Staff,3020
Redditch Borough Council,29/04/2020,337278,IN33646,342.94 ,68.60 ,Matrix Scm Ltd,5367,Human Resources,Agency Staff,3020
Redditch Borough Council,29/04/2020,337278,IN33646,5575.47 ,1115.11 ,Matrix Scm Ltd,5367,Planned,Agency Staff,3020
Redditch Borough Council,29/04/2020,337278,IN33646,1484.41 ,296.92 ,Matrix Scm Ltd,5367,Property Services,Agency Staff,3020
Redditch Borough Council,29/04/2020,337602,IN33746,1880.96 ,376.20 ,Matrix Scm Ltd,5367,Housing Locality Service,Agency Staff,3020
Redditch Borough Council,29/04/2020,337602,IN33746,4083.69 ,816.82 ,Matrix Scm Ltd,5367,Hra Responsive Repairs,Agency Staff,3020
Redditch Borough Council,29/04/2020,337602,IN33746,2118.33 ,423.72 ,Matrix Scm Ltd,5367,Hra Voids Repairs,Agency Staff,3020
Redditch Borough Council,29/04/2020,337602,IN33746,4297.78 ,859.61 ,Matrix Scm Ltd,5367,Hsg Options,Agency Staff,3020
Redditch Borough Council,29/04/2020,337602,IN33746,223.66 ,44.74 ,Matrix Scm Ltd,5367,Human Resources,Agency Staff,3020
Redditch Borough Council,29/04/2020,337602,IN33746,3560.94 ,712.21 ,Matrix Scm Ltd,5367,Planned,Agency Staff,3020
Redditch Borough Council,29/04/2020,337602,IN33746,501.69 ,100.34 ,Matrix Scm Ltd,5367,Property Services,Agency Staff,3020
Redditch Borough Council,29/04/2020,337732,IN33842,1732.93 ,346.61 ,Matrix Scm Ltd,5367,Finance,Agency Staff,3020
Redditch Borough Council,29/04/2020,337732,IN33842,1547.14 ,309.44 ,Matrix Scm Ltd,5367,Housing Locality Service,Agency Staff,3020
Redditch Borough Council,29/04/2020,337732,IN33842,3434.76 ,687.02 ,Matrix Scm Ltd,5367,Hra Responsive Repairs,Agency Staff,3020
Redditch Borough Council,29/04/2020,337732,IN33842,1626.36 ,325.32 ,Matrix Scm Ltd,5367,Hra Voids Repairs,Agency Staff,3020
Redditch Borough Council,29/04/2020,337732,IN33842,1842.71 ,368.56 ,Matrix Scm Ltd,5367,Hsg Options,Agency Staff,3020
Redditch Borough Council,29/04/2020,337732,IN33842,3046.04 ,609.23 ,Matrix Scm Ltd,5367,Planned,Agency Staff,3020
Redditch Borough Council,22/04/2020,337726,LGWGPZX4,748.93 ,149.79 ,N Power Limited,1919,Street Lighting,Electricity,3300
Redditch Borough Council,03/04/2020,337026,HSEO/03/20,1000.00 ,0.00 ,Newstarts,3311,Homelessness Administration,Grants & Subscriptions,4650
Redditch Borough Council,22/04/2020,337777,DEDS APR 20,725.86 ,0.00 ,Neyber,103705,Rbc Balance Sheet,Payroll Deductions,1488
Redditch Borough Council,03/04/2020,337280,91431430,1622.50 ,324.50 ,Northgate Public Services (Uk) Limited,577,Revenues,Agency Staff,3020
Redditch Borough Council,07/04/2020,337218,91432537,2286.25 ,457.25 ,Northgate Public Services (Uk) Limited,577,Revenues,Agency Staff,3020
Redditch Borough Council,22/04/2020,337656,91432626,3202.50 ,640.50 ,Northgate Public Services (Uk) Limited,577,Welfare Support,Agency Staff,3020
Redditch Borough Council,03/04/2020,337259,20030612,8315.37 ,1663.07 ,Novus Property Solutions Ltd,67211,Rbc Balance Sheet,Contract Payments,8131
Redditch Borough Council,03/04/2020,337260,20030613,1322.34 ,264.47 ,Novus Property Solutions Ltd,67211,Winyates Green M R,Rl Planned,3130
Redditch Borough Council,07/04/2020,336807,0071024466,2074.00 ,389.91 ,Optima Health,59907,Corporate Staff Costs,Employee Expenses,3011
Redditch Borough Council,03/04/2020,336126,0E6182/EJ27646,557.81 ,111.56 ,Orton Electrical Services Limited,64970,Street Lighting,Building Maintenance,3100
Redditch Borough Council,03/04/2020,337233,OE6252,952.19 ,190.43 ,Orton Electrical Services Limited,64970,Abbey Stadium,Rl Responsive,3120
Redditch Borough Council,03/04/2020,337233,OE6252,49.81 ,9.96 ,Orton Electrical Services Limited,64970,Batchley C C,Rl Responsive,3120
Redditch Borough Council,03/04/2020,337233,OE6252,57.54 ,11.52 ,Orton Electrical Services Limited,64970,Pitcheroak Golf Course,Rl Responsive,3120
Redditch Borough Council,03/04/2020,337233,OE6252,312.41 ,62.48 ,Orton Electrical Services Limited,64970,Town Hall,Building Maintenance,3100
Redditch Borough Council,03/04/2020,337236,OE6278/EJ27883,14067.03 ,2813.41 ,Orton Electrical Services Limited,64970,Rbc Balance Sheet,Contract Payments,8131
Redditch Borough Council,03/04/2020,337237,OE6279/EJ29078,735.83 ,147.17 ,Orton Electrical Services Limited,64970,Palace Theatre,Rl Responsive,3120
Redditch Borough Council,03/04/2020,337241,OE6283/EJ28166,971.38 ,194.28 ,Orton Electrical Services Limited,64970,Street Lighting,Building Maintenance,3100
Redditch Borough Council,07/04/2020,337240,OE6282,135.56 ,27.11 ,Orton Electrical Services Limited,64970,Community Centres,Building Maintenance,3100
Redditch Borough Council,07/04/2020,337240,OE6282,236.31 ,47.26 ,Orton Electrical Services Limited,64970,Economic Development,Building Maintenance,3100
Redditch Borough Council,07/04/2020,337240,OE6282,462.90 ,92.58 ,Orton Electrical Services Limited,64970,St Davids House,Building Maintenance,3100
Redditch Borough Council,07/04/2020,337427,OE6307,1356.90 ,271.38 ,Orton Electrical Services Limited,64970,Abbey Stadium,Rl Responsive,3120
Redditch Borough Council,07/04/2020,337427,OE6307,450.70 ,90.14 ,Orton Electrical Services Limited,64970,O'Door Sports & Rec Facilities,Building Maintenance,3100
Redditch Borough Council,07/04/2020,337427,OE6307,803.47 ,160.69 ,Orton Electrical Services Limited,64970,Town Hall,Building Maintenance,3100
Redditch Borough Council,15/04/2020,336684,OE6227,426.90 ,85.38 ,Orton Electrical Services Limited,64970,Batchley Road Shops,Building Maintenance,3100
Redditch Borough Council,15/04/2020,336684,OE6227,133.80 ,26.76 ,Orton Electrical Services Limited,64970,Business Centres - Hemming Roa,Building Maintenance,3100
Redditch Borough Council,15/04/2020,336684,OE6227,376.94 ,75.39 ,Orton Electrical Services Limited,64970,Crossgates Depot,Building Maintenance,3100
Redditch Borough Council,15/04/2020,336684,OE6227,346.90 ,69.38 ,Orton Electrical Services Limited,64970,Pitcheroak Golf Course,Rl Responsive,3120
Redditch Borough Council,15/04/2020,336686,OE6232,213.04 ,42.61 ,Orton Electrical Services Limited,64970,Batchley Neighbourhood Office,Building Maintenance,3100
Redditch Borough Council,15/04/2020,336686,OE6232,173.90 ,34.78 ,Orton Electrical Services Limited,64970,Palace Theatre,Rl Responsive,3120
Redditch Borough Council,15/04/2020,336686,OE6232,792.40 ,158.48 ,Orton Electrical Services Limited,64970,Pitcheroak Golf Course,Rl Responsive,3120
Redditch Borough Council,15/04/2020,336686,OE6232,133.44 ,26.69 ,Orton Electrical Services Limited,64970,Poplar Road Shops,Building Maintenance,3100
Redditch Borough Council,15/04/2020,336686,OE6232,1529.14 ,305.83 ,Orton Electrical Services Limited,64970,Town Hall,Building Maintenance,3100
Redditch Borough Council,15/04/2020,336686,OE6232,150.16 ,30.03 ,Orton Electrical Services Limited,64970,Winyates Shopping Centre,Building Maintenance,3100
Redditch Borough Council,22/04/2020,337786,OE6331,314.63 ,62.93 ,Orton Electrical Services Limited,64970,Economic Development,Building Maintenance,3100
Redditch Borough Council,22/04/2020,337786,OE6331,363.02 ,72.60 ,Orton Electrical Services Limited,64970,Winyates Green M R,Rl Responsive,3120
Redditch Borough Council,29/04/2020,337755,OE6329/EJ26559,3144.30 ,628.86 ,Orton Electrical Services Limited,64970,Business Centres - Greenlands,Building Maintenance,3100
Redditch Borough Council,29/04/2020,337759,OE6339/EJ26556,5379.63 ,1075.93 ,Orton Electrical Services Limited,64970,Rbc Balance Sheet,Contract Payments,8131
Redditch Borough Council,29/04/2020,337794,OE6338,786.70 ,157.34 ,Orton Electrical Services Limited,64970,Abbey Stadium,Rl Responsive,3120
Redditch Borough Council,29/04/2020,337794,OE6338,50.90 ,10.18 ,Orton Electrical Services Limited,64970,Batchley C C,Rl Responsive,3120
Redditch Borough Council,29/04/2020,337794,OE6338,49.81 ,9.96 ,Orton Electrical Services Limited,64970,O'Door Sports & Rec Facilities,Building Maintenance,3100
Redditch Borough Council,29/04/2020,337794,OE6338,49.81 ,9.96 ,Orton Electrical Services Limited,64970,Other Special Services,Building Maintenance,3100
Redditch Borough Council,29/04/2020,337794,OE6338,1919.02 ,383.81 ,Orton Electrical Services Limited,64970,Woodrow Shopping Centre,Building Maintenance,3100
Redditch Borough Council,29/04/2020,337974,QE6350/EJ20286,1018.12 ,203.62 ,Orton Electrical Services Limited,64970,Arrow Valley C'Side Centre,Rl Responsive,3120
Redditch Borough Council,29/04/2020,337976,OE6351,362.24 ,72.45 ,Orton Electrical Services Limited,64970,Arrow Valley C'Side Centre,Rl Responsive,3120
Redditch Borough Council,29/04/2020,337976,OE6351,150.53 ,30.11 ,Orton Electrical Services Limited,64970,Misc Properties,Building Maintenance,3100
Redditch Borough Council,29/04/2020,337976,OE6351,83.63 ,16.72 ,Orton Electrical Services Limited,64970,Winyates Shopping Centre,Building Maintenance,3100
Redditch Borough Council,29/04/2020,337976,OE6351,333.41 ,66.68 ,Orton Electrical Services Limited,64970,Woodrow Shopping Centre,Building Maintenance,3100
Redditch Borough Council,29/04/2020,338010,QE6170/EJ23435,7938.33 ,1587.66 ,Orton Electrical Services Limited,64970,Rbc Balance Sheet,Contract Payments,8131
Redditch Borough Council,29/04/2020,337840,5869,2107.60 ,421.52 ,P&S Electrical (South East) Limited,108139,Town Hall,Building Maintenance,3100
Redditch Borough Council,29/04/2020,337841,5870,132.00 ,26.40 ,P&S Electrical (South East) Limited,108139,Abbey Stadium,Rl Planned,3130
Redditch Borough Council,29/04/2020,337841,5870,55.00 ,11.00 ,P&S Electrical (South East) Limited,108139,Arrow Valley C'Side Centre,Rl Planned,3130
Redditch Borough Council,29/04/2020,337841,5870,55.00 ,11.00 ,P&S Electrical (South East) Limited,108139,Batchley C C,Rl Planned,3130
Redditch Borough Council,29/04/2020,337841,5870,55.00 ,11.00 ,P&S Electrical (South East) Limited,108139,Forge Mill Museum,Rl Planned,3130
Redditch Borough Council,29/04/2020,337841,5870,55.00 ,11.00 ,P&S Electrical (South East) Limited,108139,Museums And Gallaries,Rl Planned,3130
Redditch Borough Council,29/04/2020,337841,5870,55.00 ,11.00 ,P&S Electrical (South East) Limited,108139,Oakenshaw M R,Rl Planned,3130
Redditch Borough Council,29/04/2020,337841,5870,56.10 ,11.22 ,P&S Electrical (South East) Limited,108139,Pitcheroak Golf Course,Rl Planned,3130
Redditch Borough Council,29/04/2020,337841,5870,55.00 ,11.00 ,P&S Electrical (South East) Limited,108139,Windmill M R,Rl Planned,3130
Redditch Borough Council,29/04/2020,337841,5870,55.00 ,11.00 ,P&S Electrical (South East) Limited,108139,Winyates Green M R,Rl Planned,3130
Redditch Borough Council,07/04/2020,337430,649,500.00 ,0.00 ,Pete Burton,556,Community Parks & Open Spaces,Grounds Maintenance,3200
Redditch Borough Council,29/04/2020,336520,PINV/2020/0041,24071.81 ,4814.36 ,Poolpod Products Ltd,108200,Rbc Balance Sheet,Contract Payments,8131
Redditch Borough Council,22/04/2020,337741,13749,6048.00 ,1209.60 ,Professional Data Management Services Ltd,63116,Housing Locality Service,Other Fees,4360
Redditch Borough Council,22/04/2020,334943,0000015685,2070.00 ,414.00 ,Project Centre Limited,107959,Rbc Balance Sheet,Direct Payments,8132
Redditch Borough Council,29/04/2020,336654,90136763,2750.00 ,0.00 ,Qmatic Ab Ltd T/A Qmatic,7190,Customer Services Rbc Only,Ict,4500
Redditch Borough Council,22/04/2020,337710,37-44,635.87 ,0.00 ,R D Rogers Butchers,373,St Davids Hse Luncheon Club,Catering Provisions,4200
Redditch Borough Council,07/04/2020,337281,RBC27032020,6300.00 ,1260.00 ,Redditch Hotel Ltd In Administration,108466,Bed And Breakfast Accom.,Rents & Service Charge,3350
Redditch Borough Council,22/04/2020,337731,062/20,960.00 ,0.00 ,Redditch Selfdefence,103312,Arts Development And Support,Other Fees,4360
Redditch Borough Council,03/04/2020,337267,1066457,668.10 ,133.62 ,Redditch Skip Hire Ltd,984,Redditch Place Teams General,Refuse Collection/Waste Dispos,3602
Redditch Borough Council,15/04/2020,335630,1066379,4928.35 ,985.67 ,Redditch Skip Hire Ltd,984,Hra Responsive Repairs,Refuse Collection/Waste Dispos,3602
Redditch Borough Council,15/04/2020,337551,1066156,541.25 ,108.25 ,Redditch Skip Hire Ltd,984,Hra Responsive Repairs,Refuse Collection/Waste Dispos,3602
Redditch Borough Council,22/04/2020,337724,21159709,106.50 ,21.30 ,Rentokil Pest Control,107154,Abbey Stadium,Rl Responsive,3120
Redditch Borough Council,22/04/2020,337724,21159709,48.50 ,9.70 ,Rentokil Pest Control,107154,Business Centres - Hemming Roa,Building Maintenance,3100
Redditch Borough Council,22/04/2020,337724,21159709,102.50 ,20.50 ,Rentokil Pest Control,107154,Community Centres,Building Maintenance,3100
Redditch Borough Council,22/04/2020,337724,21159709,78.25 ,15.65 ,Rentokil Pest Control,107154,Crossgates Depot,Building Maintenance,3100
Redditch Borough Council,22/04/2020,337724,21159709,78.25 ,15.65 ,Rentokil Pest Control,107154,Crossgates House,Building Maintenance,3100
Redditch Borough Council,22/04/2020,337724,21159709,75.75 ,15.15 ,Rentokil Pest Control,107154,Pitcheroak Golf Course,Rl Responsive,3120
Redditch Borough Council,22/04/2020,337724,21159709,59.25 ,11.85 ,Rentokil Pest Control,107154,Town Hall,Building Maintenance,3100
Redditch Borough Council,07/04/2020,337395,235,2887.50 ,577.50 ,Resources Consultancy Ltd,60829,Finance,Professional Fees,4350
Redditch Borough Council,07/04/2020,337396,236,4987.50 ,997.50 ,Resources Consultancy Ltd,60829,Finance,Professional Fees,4350
Redditch Borough Council,03/04/2020,336961,173075,7040.00 ,1408.00 ,Ridge Llp,103197,Hra Interim Arrangements,Professional Fees,4350
Redditch Borough Council,07/04/2020,337282,171248,38890.00 ,7778.00 ,Ridge Llp,103197,Rbc Balance Sheet,Contract Payments,8131
Redditch Borough Council,29/04/2020,337821,174538,1800.00 ,360.00 ,Ridge Llp,103197,Town Hall,Building Maintenance,3100
Redditch Borough Council,22/04/2020,337788,21530,0.00 ,490.00 ,Roantree Incentive Marketing Limited,108401,Crossgate Stocks,Stock Account (Cedar),1201
Redditch Borough Council,29/04/2020,337964,21541,0.00 ,842.52 ,Roantree Incentive Marketing Limited,108401,Crossgate Stocks,Stock Account (Cedar),1201
Redditch Borough Council,29/04/2020,337798,0000000620,1245.25 ,0.00 ,Rsa Academy Arrow Vale,2678,Arts Development And Support,Other Fees,4360
Redditch Borough Council,29/04/2020,337950,700006270,62350.30 ,12219.65 ,Rubicon Leisure Ltd,104574,Rbc Balance Sheet,Debtors - Rubicon Leisure Ltd,1365
Redditch Borough Council,22/04/2020,337729,2020-04,475.02 ,0.00 ,Scottish Water Business Stream,102489,Allotments,Water Charges,3450
Redditch Borough Council,22/04/2020,337729,2020-04,152.94 ,0.00 ,Scottish Water Business Stream,102489,Batchley Neighbourhood Office,Water Charges,3450
Redditch Borough Council,22/04/2020,337729,2020-04,1049.59 ,0.00 ,Scottish Water Business Stream,102489,Business Centres - Greenlands,Water Charges,3450
Redditch Borough Council,22/04/2020,337729,2020-04,15.65 ,0.00 ,Scottish Water Business Stream,102489,Business Centres - Hemming Roa,Water Charges,3450
Redditch Borough Council,22/04/2020,337729,2020-04,-923.40 ,0.00 ,Scottish Water Business Stream,102489,Business Centres - Rubicon,Water Charges,3450
Redditch Borough Council,22/04/2020,337729,2020-04,2177.89 ,0.00 ,Scottish Water Business Stream,102489,Crossgates Depot,Water Charges,3450
Redditch Borough Council,22/04/2020,337729,2020-04,122.49 ,0.00 ,Scottish Water Business Stream,102489,Economic Development,Water Charges,3450
Redditch Borough Council,22/04/2020,337729,2020-04,1040.20 ,0.00 ,Scottish Water Business Stream,102489,I&E Loss On Disposal Reval,Water Charges,3450
Redditch Borough Council,22/04/2020,337729,2020-04,17.27 ,0.00 ,Scottish Water Business Stream,102489,Other Special Services,Water Charges,3450
Redditch Borough Council,22/04/2020,337729,2020-04,-3469.79 ,0.00 ,Scottish Water Business Stream,102489,Redditch Place Teams General,Water Charges,3450
Redditch Borough Council,22/04/2020,337729,2020-04,1110.67 ,0.00 ,Scottish Water Business Stream,102489,St Davids House,Water Charges,3450
Redditch Borough Council,22/04/2020,337729,2020-04,2179.99 ,0.00 ,Scottish Water Business Stream,102489,Town Hall,Water Charges,3450
Redditch Borough Council,22/04/2020,337729,2020-04,17.85 ,0.00 ,Scottish Water Business Stream,102489,Winyates Neighbourhood Office,Water Charges,3450
Redditch Borough Council,22/04/2020,335951,796240,797.50 ,159.50 ,Security Plus Limited,103042,Customer Support,Other Fees,4360
Redditch Borough Council,29/04/2020,337768,INV183633,684.00 ,136.80 ,Servicom (High Tech) Ltd,338,Safer & Stronger Communities,Other Fees,4360
Redditch Borough Council,29/04/2020,338014,CA-011934,4345.44 ,0.00 ,Snape Construction,6606,Rbc Balance Sheet,Disabled Facilities Grant,8701
Redditch Borough Council,07/04/2020,337091,3645632,2123.00 ,0.00 ,Sodexo Motivation Solutions Uk Ltd,103152,Rbc Balance Sheet,Payroll Deductions,1488
Redditch Borough Council,07/04/2020,337436,INV02553786,12979.08 ,2595.82 ,Softcat Ltd,35134,Finance,Ict,4500
Redditch Borough Council,29/04/2020,337440,INV105,810.00 ,0.00 ,Support In Education Life And Family Ltd,107065,Bromsgrove Csp,Other Fees,4360
Redditch Borough Council,03/04/2020,337130,5847,3442.67 ,688.56 ,Sutcliffe Play South West,1234,O'Door Sports & Rec Facilities,Furniture & Equipment R&M,4002
Redditch Borough Council,07/04/2020,335622,U003320,52500.00 ,10500.00 ,Technologyone Uk Ltd,106632,Rbc Balance Sheet,Contract Payments,8131
Redditch Borough Council,07/04/2020,337029,U003388,49525.00 ,9905.00 ,Technologyone Uk Ltd,106632,Rbc Balance Sheet,Contract Payments,8131
Redditch Borough Council,29/04/2020,337833,U003357,12889.08 ,2577.82 ,Technologyone Uk Ltd,106632,Rbc Balance Sheet,Contract Payments,8131
Redditch Borough Council,07/04/2020,337035,900035560,770.00 ,0.00 ,Telealarm Europe Gmbh,104726,Rbc Balance Sheet,Machinery & Equip - Purchase,8152
Redditch Borough Council,29/04/2020,337660,900035932,4950.00 ,0.00 ,Telealarm Europe Gmbh,104726,Rbc Balance Sheet,Machinery & Equip - Purchase,8152
Redditch Borough Council,07/04/2020,333827,229074,1120.00 ,224.00 ,Tersus Consultancy Limited,102195,Rbc Balance Sheet,Contract Payments,8131
Redditch Borough Council,07/04/2020,333829,229076,560.00 ,112.00 ,Tersus Consultancy Limited,102195,Rbc Balance Sheet,Contract Payments,8131
Redditch Borough Council,07/04/2020,337052,233657,37914.45 ,7582.89 ,Tersus Consultancy Limited,102195,Rbc Balance Sheet,Contract Payments,8131
Redditch Borough Council,15/04/2020,336064,192007-00090,1360.00 ,272.00 ,The Environment Partnership (Tep) Ltd,106404,Rbc Balance Sheet,Direct Payments,8132
Redditch Borough Council,29/04/2020,336063,192007-00089,1355.17 ,271.03 ,The Environment Partnership (Tep) Ltd,106404,Rbc Balance Sheet,Direct Payments,8132
Redditch Borough Council,03/04/2020,337232,108367,59293.39 ,11858.68 ,Total Integrated Solutions Limited,64246,Safer & Stronger Communities,Other Fees,4360
Redditch Borough Council,22/04/2020,337385,INV333891,917.56 ,183.51 ,Tpg Disable Aids,242,Rbc Balance Sheet,Contract Payments,8131
Redditch Borough Council,07/04/2020,337381,71105735,761.10 ,152.22 ,Tructyre Fleet Management Ltd,105979,Household Waste Collection,R&M Of Vehicles,3700
Redditch Borough Council,29/04/2020,337836,71105980,792.76 ,158.55 ,Tructyre Fleet Management Ltd,105979,Household Waste Collection,R&M Of Vehicles,3700
Redditch Borough Council,15/04/2020,337534,3IN/10354262,700.50 ,140.10 ,Tunstall  Limited,459,Lifeline - Support,Furniture & Equipment Purchase,4000
Redditch Borough Council,03/04/2020,337197,10571,669.99 ,134.00 ,Unique Mechanical Services Ltd,35278,Abbey Stadium,Rl Responsive,3120
Redditch Borough Council,22/04/2020,337775,DEDS APR 20,1052.00 ,0.00 ,Unison West Midlands Regional Centre,1510,Rbc Balance Sheet,Payroll Deductions,1488
Redditch Borough Council,03/04/2020,336038,22653,15140.00 ,3028.00 ,Ventro Group,103300,Rbc Balance Sheet,Contract Payments,8131
Redditch Borough Council,07/04/2020,337373,22693,21400.00 ,4280.00 ,Ventro Group,103300,Rbc Balance Sheet,Contract Payments,8131
Redditch Borough Council,22/04/2020,337370,22649,33600.96 ,6720.20 ,Ventro Group,103300,Rbc Balance Sheet,Contract Payments,8131
Redditch Borough Council,22/04/2020,337371,22673,5296.44 ,1059.29 ,Ventro Group,103300,Rbc Balance Sheet,Contract Payments,8131
Redditch Borough Council,22/04/2020,337372,22688,10296.00 ,2059.20 ,Ventro Group,103300,Rbc Balance Sheet,Contract Payments,8131
Redditch Borough Council,22/04/2020,337374,22700,26182.80 ,5236.56 ,Ventro Group,103300,Rbc Balance Sheet,Contract Payments,8131
Redditch Borough Council,22/04/2020,337561,22705,6820.00 ,1364.00 ,Ventro Group,103300,Rbc Balance Sheet,Contract Payments,8131
Redditch Borough Council,22/04/2020,337727,293139-144,10483.09 ,2096.62 ,Virgin Media Payments Limited,507,Rbc It Costs,Ict,4500
Redditch Borough Council,22/04/2020,337643,INV-5357,7800.00 ,1560.00 ,Vivedia,108407,Crematoria,Professional Fees,4350
Redditch Borough Council,22/04/2020,337806,20-03-REDDITCH,590.00 ,118.00 ,Vivedia,108407,Crematoria,Professional Fees,4350
Redditch Borough Council,03/04/2020,337024,1946,2550.00 ,510.00 ,W D Ornamental Ironwork,440,Travellers & Unauth Campers,B'Grove Shared Services Cost,5012
Redditch Borough Council,03/04/2020,337178,6654,660.00 ,132.00 ,Weatherguard Hpm Midlands Ltd,428,Community Centres,Building Maintenance,3100
Redditch Borough Council,03/04/2020,337180,6655,616.00 ,123.20 ,Weatherguard Hpm Midlands Ltd,428,Misc Properties,Building Maintenance,3100
Redditch Borough Council,03/04/2020,337188,WM3561,1804.87 ,360.97 ,Wessex Commercial Division (Joedan Man Ltd),107949,Palace Theatre,Rl Responsive,3120
Redditch Borough Council,22/04/2020,337715,RBC015,302.32 ,51.60 ,West Mercia Energy,6249,Batchley Neighbourhood Office,Electricity,3300
Redditch Borough Council,22/04/2020,337715,RBC015,121.13 ,6.06 ,West Mercia Energy,6249,Batchley Neighbourhood Office,Gas,3301
Redditch Borough Council,22/04/2020,337715,RBC015,359.61 ,64.16 ,West Mercia Energy,6249,Business Centres - Greenlands,Electricity,3300
Redditch Borough Council,22/04/2020,337715,RBC015,780.86 ,156.17 ,West Mercia Energy,6249,Business Centres - Greenlands,Gas,3301
Redditch Borough Council,22/04/2020,337715,RBC015,910.74 ,182.15 ,West Mercia Energy,6249,Business Centres - Hemming Roa,Electricity,3300
Redditch Borough Council,22/04/2020,337715,RBC015,1140.53 ,228.11 ,West Mercia Energy,6249,Business Centres - Hemming Roa,Gas,3301
Redditch Borough Council,22/04/2020,337715,RBC015,730.52 ,144.47 ,West Mercia Energy,6249,Business Centres - Rubicon,Electricity,3300
Redditch Borough Council,22/04/2020,337715,RBC015,1446.87 ,289.37 ,West Mercia Energy,6249,Business Centres - Rubicon,Gas,3301
Redditch Borough Council,22/04/2020,337715,RBC015,98.36 ,4.92 ,West Mercia Energy,6249,Community Centres,Electricity,3300
Redditch Borough Council,22/04/2020,337715,RBC015,265.51 ,53.10 ,West Mercia Energy,6249,Community Centres,Gas,3301
Redditch Borough Council,22/04/2020,337715,RBC015,240.38 ,46.45 ,West Mercia Energy,6249,Crematoria,Electricity,3300
Redditch Borough Council,22/04/2020,337715,RBC015,2131.07 ,426.21 ,West Mercia Energy,6249,Crematoria,Gas,3301
Redditch Borough Council,22/04/2020,337715,RBC015,2558.60 ,511.72 ,West Mercia Energy,6249,Crossgates Depot,Gas,3301
Redditch Borough Council,22/04/2020,337715,RBC015,1008.32 ,172.69 ,West Mercia Energy,6249,Economic Development,Electricity,3300
Redditch Borough Council,22/04/2020,337715,RBC015,14.37 ,0.72 ,West Mercia Energy,6249,Forge Mill Museum,Electricity,3300
Redditch Borough Council,22/04/2020,337715,RBC015,280.97 ,41.87 ,West Mercia Energy,6249,O'Door Sports & Rec Facilities,Electricity,3300
Redditch Borough Council,22/04/2020,337715,RBC015,56.61 ,2.83 ,West Mercia Energy,6249,O'Door Sports & Rec Facilities,Gas,3301
Redditch Borough Council,22/04/2020,337715,RBC015,80.19 ,4.03 ,West Mercia Energy,6249,Off-Street Parking,Electricity,3300
Redditch Borough Council,22/04/2020,337715,RBC015,10184.63 ,1305.55 ,West Mercia Energy,6249,Other Special Services,Electricity,3300
Redditch Borough Council,22/04/2020,337715,RBC015,4037.04 ,732.88 ,West Mercia Energy,6249,Other Special Services,Gas,3301
Redditch Borough Council,22/04/2020,337715,RBC015,866.58 ,173.32 ,West Mercia Energy,6249,St Davids House,Electricity,3300
Redditch Borough Council,22/04/2020,337715,RBC015,1607.72 ,321.54 ,West Mercia Energy,6249,St Davids House,Gas,3301
Redditch Borough Council,22/04/2020,337715,RBC015,589.05 ,113.70 ,West Mercia Energy,6249,Town Hall,Electricity,3300
Redditch Borough Council,22/04/2020,337715,RBC015,12.34 ,0.62 ,West Mercia Energy,6249,Winyates Craft Centre,Electricity,3300
Redditch Borough Council,22/04/2020,337715,RBC015,262.13 ,13.10 ,West Mercia Energy,6249,Winyates Neighbourhood Office,Electricity,3300
Redditch Borough Council,22/04/2020,337715,RBC015,222.53 ,11.14 ,West Mercia Energy,6249,Winyates Neighbourhood Office,Gas,3301
Redditch Borough Council,22/04/2020,337715,RBC015,464.98 ,93.00 ,West Mercia Energy,6249,Woodrow Neighbourhood Office,Electricity,3300
Redditch Borough Council,22/04/2020,337715,RBC015,132.66 ,6.63 ,West Mercia Energy,6249,Woodrow Neighbourhood Office,Gas,3301
Redditch Borough Council,22/04/2020,337715,RBC015,112.04 ,5.60 ,West Mercia Energy,6249,Woodrow Shopping Centre,Electricity,3300
Redditch Borough Council,22/04/2020,337730,RBC016,13.85 ,0.69 ,West Mercia Energy,6249,Business Centres - Greenlands,Electricity,3300
Redditch Borough Council,22/04/2020,337730,RBC016,236.16 ,47.23 ,West Mercia Energy,6249,Community Centres,Electricity,3300
Redditch Borough Council,22/04/2020,337730,RBC016,2485.07 ,497.01 ,West Mercia Energy,6249,Crossgates Depot,Electricity,3300
Redditch Borough Council,22/04/2020,337730,RBC016,9.42 ,0.47 ,West Mercia Energy,6249,Economic Development,Electricity,3300
Redditch Borough Council,22/04/2020,337730,RBC016,29.81 ,1.49 ,West Mercia Energy,6249,Matchborough Shopping Centre,Electricity,3300
Redditch Borough Council,22/04/2020,337730,RBC016,2229.85 ,301.81 ,West Mercia Energy,6249,Other Special Services,Electricity,3300
Redditch Borough Council,22/04/2020,337730,RBC016,16.64 ,0.83 ,West Mercia Energy,6249,Redditch Place Teams General,Electricity,3300
Redditch Borough Council,22/04/2020,337730,RBC016,7682.17 ,1535.05 ,West Mercia Energy,6249,Town Hall,Electricity,3300
Redditch Borough Council,22/04/2020,337730,RBC016,7722.88 ,1544.57 ,West Mercia Energy,6249,Town Hall,Gas,3301
Redditch Borough Council,22/04/2020,337730,RBC016,74.01 ,3.70 ,West Mercia Energy,6249,Winyates Craft Centre,Electricity,3300
Redditch Borough Council,22/04/2020,337730,RBC016,95.65 ,31.65 ,West Mercia Energy,6249,Winyates Neighbourhood Office,Gas,3301
Redditch Borough Council,22/04/2020,337730,RBC016,10.37 ,0.52 ,West Mercia Energy,6249,Winyates Shopping Centre,Electricity,3300
Redditch Borough Council,22/04/2020,337730,RBC016,2020.17 ,404.03 ,West Mercia Energy,6249,Woodrow Shopping Centre,Electricity,3300
Redditch Borough Council,03/04/2020,331397,20470,822.52 ,164.50 ,West Midlands Employers,422,Corporate Staff Costs,Training,3043
Redditch Borough Council,07/04/2020,336517,20664,700.00 ,140.00 ,West Midlands Employers,422,Corporate Staff Costs,Training,3043
Redditch Borough Council,07/04/2020,336708,20631,6012.16 ,1202.43 ,West Midlands Employers,422,Corporate Staff Costs,Training,3043
Redditch Borough Council,22/04/2020,331401,20474,822.52 ,164.50 ,West Midlands Employers,422,Corporate Staff Costs,Training,3043
Redditch Borough Council,22/04/2020,334787,20536,2750.00 ,550.00 ,West Midlands Employers,422,Corporate Staff Costs,Training,3043
Redditch Borough Council,22/04/2020,334950,20549,822.52 ,164.50 ,West Midlands Employers,422,Corporate Staff Costs,Training,3043
Redditch Borough Council,22/04/2020,335344,20575,822.52 ,164.50 ,West Midlands Employers,422,Corporate Staff Costs,Training,3043
Redditch Borough Council,29/04/2020,337763,20737,9768.00 ,1953.60 ,West Midlands Employers,422,Corporate Staff Costs,Employee Expenses,3011
Redditch Borough Council,29/04/2020,337817,19/20022,1175.75 ,0.00 ,Whats Your Point,1563,Arts Development And Support,Other Fees,4360
Redditch Borough Council,03/04/2020,337041,67202906,0.00 ,111.64 ,Wolseley Uk,396,Crossgate Stocks,Stock Account (Cedar),1201
Redditch Borough Council,03/04/2020,337166,67202904,0.00 ,101.09 ,Wolseley Uk,396,Crossgate Stocks,Stock Account (Cedar),1201
Redditch Borough Council,03/04/2020,337166,67202904,2.20 ,0.44 ,Wolseley Uk,396,Crossgate Stocks,Stock Variance,1203
Redditch Borough Council,03/04/2020,337169,67202909,808.90 ,161.78 ,Wolseley Uk,396,Planned,Materials,4170
Redditch Borough Council,03/04/2020,337171,67234529,523.85 ,104.77 ,Wolseley Uk,396,Planned,Materials,4170
Redditch Borough Council,03/04/2020,337174,67264537,0.00 ,159.36 ,Wolseley Uk,396,Crossgate Stocks,Stock Account (Cedar),1201
Redditch Borough Council,03/04/2020,337176,67202907,961.54 ,192.32 ,Wolseley Uk,396,Rbc Balance Sheet,Contract Payments,8131
Redditch Borough Council,07/04/2020,337193,IN00173085,11921.04 ,2384.21 ,Worcestershire County Council,195,Rbc Balance Sheet,Contract Payments,8131
Redditch Borough Council,29/04/2020,337527,IN00173516,2610.50 ,522.10 ,Worcestershire County Council,195,Land Charges,Other Fees,4360
Redditch Borough Council,29/04/2020,337984,IN00178149,11570.60 ,0.00 ,Worcestershire County Council,195,Rbc Balance Sheet,Disabled Facilities Grant,8701
Redditch Borough Council,15/04/2020,337103,IN00172927,5395.28 ,0.00 ,Worcestershire County Council,5371,Anti-Social Behaviour,Actuarial Strain,2900
Redditch Borough Council,15/04/2020,337103,IN00172927,121672.58 ,0.00 ,Worcestershire County Council,5371,Hra Responsive Repairs,Actuarial Strain,2900
Redditch Borough Council,15/04/2020,337103,IN00172927,1115.28 ,0.00 ,Worcestershire County Council,5371,Hra Voids Repairs,Actuarial Strain,2900
Redditch Borough Council,15/04/2020,337556,IN00173681,38341.36 ,0.00 ,Worcestershire County Council,5371,Hra Voids Repairs,Actuarial Strain,2900
Redditch Borough Council,22/04/2020,337822,4034579398,0.00 ,244.00 ,Wurth Uk Limited,676,Crossgate Stocks,Stock Account (Cedar),1201
Redditch Borough Council,29/04/2020,337825,4034580087,0.00 ,770.50 ,Wurth Uk Limited,676,Crossgate Stocks,Stock Account (Cedar),1201
Redditch Borough Council,07/04/2020,336766,DSD0213839,1791.00 ,0.00 ,Wychavon District Council,674,General Election 12-12-2019,Furniture & Equipment Rental,4001
Redditch Borough Council,22/04/2020,337738,AAD0218783,20659.38 ,4131.88 ,Wychavon District Council,674,On-Street Parking,Other Local Authorities,5009
Redditch Borough Council,03/04/2020,337086,GRANT,1671.13 ,0.00 ,Yes Energy Solutions,63937,Rbc Balance Sheet,Contract Payments,8131
Redditch Borough Council,03/04/2020,337087,GRANT,1886.18 ,0.00 ,Yes Energy Solutions,63937,Rbc Balance Sheet,Contract Payments,8131
Redditch Borough Council,03/04/2020,337088,GRANT,1124.72 ,0.00 ,Yes Energy Solutions,63937,Rbc Balance Sheet,Contract Payments,8131
Redditch Borough Council,03/04/2020,337089,GRANT,1909.78 ,0.00 ,Yes Energy Solutions,63937,Rbc Balance Sheet,Contract Payments,8131
Redditch Borough Council,29/04/2020,337951,0000104969,4375.50 ,875.10 ,Yes Energy Solutions,63937,Public Health,Other Fees,4360
Redditch Borough Council,29/04/2020,337797,32320,1043.75 ,0.00 ,Ymca,661,Arts Development And Support,Other Fees,4360
Redditch Borough Council,03/04/2020,337085,02H077 02172112,26000.00 ,0.00 ,Zurich Municipal,106996,Rbc Balance Sheet,Insurance Provision,2211
,,,,1691063.08 ,245087.33 ,,,,,
